[Event "Kvibergspelen 2018"]
[Site "Prioritet Serneke Arena, Krutvagen 2, Gothenburg, Sweden"]
[Date "2018.04.22"]
[Round "8.8"]
[White "Nilsson, Anders"]
[Black "Wengholm, Anders"]
[Result "1/2-1/2"]
[TimeControl "15 minutes + 5 seconds per move from move one (Round 1 - 4) / 90 minutes + 30 seconds per move from move one (Round 5 - 8)"]
[WhiteTitle "CM"]
[WhiteFideId "1705423"]
[BlackFideId "1704818"]
[WhiteElo "2217"]
[BlackElo "2158"]

1. d4 {[%clk 01:30:59]} Nf6 {[%clk 01:30:53]} {[%emt 00:00:07]} 2. c4 {[%clk
01:31:18]} {[%emt 00:00:11]} e6 {[%clk 01:27:26]} {[%emt 00:03:57]} 3. Nc3
{[%clk 01:31:32]} {[%emt 00:00:17]} Bb4 {[%clk 01:27:46]} {[%emt 00:00:10]} 4.
e3 {[%clk 01:31:51]} {[%emt 00:00:11]} O-O {[%clk 01:28:05]} {[%emt 00:00:11]}
5. Bd3 {[%clk 01:32:14]} {[%emt 00:00:07]} c5 {[%clk 01:28:12]} {[%emt
00:00:23]} 6. Nge2 {[%clk 01:32:33]} {[%emt 00:00:11]} d5 {[%clk 01:10:07]}
{[%emt 00:18:36]} 7. cxd5 {[%clk 01:32:02]} {[%emt 00:01:01]} exd5 {[%clk
01:08:14]} {[%emt 00:02:23]} 8. f3 {[%clk 01:32:13]} {[%emt 00:00:20]} Nc6
{[%clk 00:53:49]} {[%emt 00:14:56]} 9. a3 {[%clk 01:22:56]} {[%emt 00:09:47]}
Bxc3+ {[%clk 00:51:05]} {[%emt 00:03:13]} 10. bxc3 {[%clk 01:21:46]} {[%emt
00:01:40]} Re8 {[%clk 00:51:19]} {[%emt 00:00:16]} 11. O-O {[%clk 01:21:14]}
{[%emt 00:01:02]} b6 {[%clk 00:51:10]} {[%emt 00:00:39]} 12. Ng3 {[%clk
01:16:05]} {[%emt 00:05:38]} Be6 {[%clk 00:47:20]} {[%emt 00:04:21]} 13. Nf5
{[%clk 00:58:40]} {[%emt 00:17:55]} Bxf5 {[%clk 00:45:01]} {[%emt 00:02:49]} 14.
Bxf5 {[%clk 00:59:08]} {[%emt 00:00:02]} Qd6 {[%clk 00:44:54]} {[%emt
00:00:37]} 15. Rb1 {[%clk 00:49:21]} {[%emt 00:10:15]} Rad8 {[%clk 00:43:48]}
{[%emt 00:01:37]} 16. Qa4 {[%clk 00:48:53]} {[%emt 00:00:57]} Re7 {[%clk
00:41:40]} {[%emt 00:02:39]} 17. Bd2 {[%clk 00:45:36]} {[%emt 00:03:46]} Rc7
{[%clk 00:35:59]} {[%emt 00:06:12]} 18. Be1 {[%clk 00:44:57]} {[%emt 00:01:09]}
Na5 {[%clk 00:32:41]} {[%emt 00:03:49]} 19. Bg3 {[%clk 00:33:16]} {[%emt
00:12:10]} Qc6 {[%clk 00:33:04]} {[%emt 00:00:07]} 20. Qb5 {[%clk 00:33:01]}
{[%emt 00:00:44]} Re7 {[%clk 00:22:18]} {[%emt 00:11:17]} 21. dxc5 {[%clk
00:31:52]} {[%emt 00:01:39]} Qxc5 {[%clk 00:22:30]} {[%emt 00:00:18]} 22. Qxc5
{[%clk 00:28:50]} {[%emt 00:03:32]} bxc5 {[%clk 00:22:51]} {[%emt 00:00:08]} 23.
Kf2 {[%clk 00:15:36]} {[%emt 00:13:44]} Nc4 {[%clk 00:22:13]} {[%emt 00:01:09]}
24. Rfe1 {[%clk 00:15:47]} {[%emt 00:00:18]} Nxa3 {[%clk 00:08:24]} {[%emt
00:14:20]} 25. Ra1 {[%clk 00:15:23]} {[%emt 00:00:54]} Nc4 {[%clk 00:08:48]}
{[%emt 00:00:05]} 26. Ra4 {[%clk 00:15:26]} {[%emt 00:00:27]} g6 {[%clk
00:09:01]} {[%emt 00:00:17]} 27. Bh4 {[%clk 00:14:55]} {[%emt 00:01:01]} Kg7
{[%clk 00:09:19]} {[%emt 00:00:12]} 28. Bc2 {[%clk 00:14:43]} {[%emt 00:00:38]}
Rb8 {[%clk 00:07:55]} {[%emt 00:01:58]} 29. Re2 {[%clk 00:14:47]} {[%emt
00:00:26]} Rb2 {[%clk 00:07:50]} {[%emt 00:00:35]} 30. e4 {[%clk 00:14:58]}
{[%emt 00:00:19]} Nb6 {[%clk 00:07:33]} {[%emt 00:00:47]} 31. Ra6 {[%clk
00:12:03]} {[%emt 00:03:25]} dxe4 {[%clk 00:07:46]} {[%emt 00:00:17]} 32. fxe4
{[%clk 00:11:45]} {[%emt 00:00:48]} Rd7 {[%clk 00:06:13]} {[%emt 00:02:03]} 33.
Kf3 {[%clk 00:09:34]} {[%emt 00:02:40]} h6 {[%clk 00:04:44]} {[%emt 00:01:59]}
34. Bf2 {[%clk 00:09:42]} {[%emt 00:00:22]} Rc7 {[%clk 00:04:02]} {[%emt
00:01:12]} 35. Ra5 {[%clk 00:10:06]} {[%emt 00:00:06]} Nfd7 {[%clk 00:03:33]}
{[%emt 00:00:59]} 36. Bg3 {[%clk 00:10:28]} {[%emt 00:00:08]} Rb7 {[%clk
00:03:49]} {[%emt 00:00:14]} 37. Bd3 {[%clk 00:10:23]} {[%emt 00:00:35]} Rxe2
{[%clk 00:04:03]} {[%emt 00:00:15]} 38. Bxe2 {[%clk 00:10:48]} {[%emt
00:00:05]} c4 {[%clk 00:04:14]} {[%emt 00:00:20]} 39. Bf2 {[%clk 00:11:03]}
{[%emt 00:00:15]} f6 {[%clk 00:04:32]} {[%emt 00:00:11]} 40. Bd4 {[%clk
00:11:23]} {[%emt 00:00:10]} Rc7 {[%clk 00:03:41]} {[%emt 00:01:21]} 41. Ke3
{[%clk 00:11:46]} {[%emt 00:00:07]} Kf7 {[%clk 00:04:10]} {[%emt 00:00:02]} 42.
h4 {[%clk 00:11:46]} {[%emt 00:00:30]} h5 {[%clk 00:03:34]} {[%emt 00:01:06]}
43. Ra6 {[%clk 00:12:00]} {[%emt 00:00:16]} Ke7 {[%clk 00:03:03]} {[%emt
00:01:00]} 44. g3 {[%clk 00:12:13]} {[%emt 00:00:17]} Nc8 {[%clk 00:01:25]}
{[%emt 00:02:08]} 45. g4 {[%clk 00:11:56]} {[%emt 00:00:47]} hxg4 {[%clk
00:01:33]} {[%emt 00:00:22]} 46. Bxg4 {[%clk 00:12:23]} {[%emt 00:00:03]} Nd6
{[%clk 00:00:47]} {[%emt 00:01:16]} 47. Bxa7 {[%clk 00:11:59]} {[%emt
00:00:54]} Ne5 {[%clk 00:01:09]} {[%emt 00:00:08]} 48. Bh3 {[%clk 00:11:55]}
{[%emt 00:00:34]} f5 {[%clk 00:00:51]} {[%emt 00:00:49]} 49. Bb8 {[%clk
00:10:20]} {[%emt 00:02:05]} Rc6 {[%clk 00:01:05]} {[%emt 00:00:15]} 50. Bxd6+
{[%clk 00:08:50]} {[%emt 00:02:00]} Kxd6 {[%clk 00:01:07]} {[%emt 00:00:28]} 51.
Rxc6+ {[%clk 00:09:11]} {[%emt 00:00:08]} Nxc6 {[%clk 00:01:34]} {[%emt
00:00:03]} 52. exf5 {[%clk 00:09:31]} {[%emt 00:00:10]} gxf5 {[%clk 00:02:02]}
{[%emt 00:00:02]} 53. Bxf5 {[%clk 00:09:53]} {[%emt 00:00:08]} Ke5 {[%clk
00:02:16]} {[%emt 00:00:16]} 54. Be4 {[%clk 00:09:40]} {[%emt 00:00:43]} Na7
{[%clk 00:01:41]} {[%emt 00:01:06]} 55. h5 {[%clk 00:09:23]} {[%emt 00:00:47]}
Kf6 {[%clk 00:01:56]} {[%emt 00:00:14]} 56. Kd4 {[%clk 00:09:41]} {[%emt
00:00:12]} Nb5+ {[%clk 00:02:15]} {[%emt 00:00:11]} 57. Kxc4 {[%clk 00:09:46]}
{[%emt 00:00:25]} Nxc3 {[%emt 00:01:45]} 1/2-1/2

[Event "Kvibergspelen 2018"]
[Site "Prioritet Serneke Arena, Krutvagen 2, Gothenburg, Sweden"]
[Date "2018.04.22"]
[Round "8.9"]
[White "Ronneland, Daniel"]
[Black "Troberg Eskola, Love"]
[Result "1-0"]
[TimeControl "15 minutes + 5 seconds per move from move one (Round 1 - 4) / 90 minutes + 30 seconds per move from move one (Round 5 - 8)"]
[WhiteFideId "1702130"]
[BlackFideId "1724185"]
[WhiteElo "2201"]
[BlackElo "2045"]

1. d4 {[%clk 01:30:40]} {[%emt 00:00:19]} d5 {[%clk 01:30:51]} {[%emt
00:00:09]} 2. c4 {[%clk 01:30:51]} {[%emt 00:00:19]} dxc4 {[%clk 01:31:20]}
{[%emt 00:00:02]} 3. e3 {[%clk 01:30:24]} {[%emt 00:00:56]} b5 {[%clk
01:31:44]} {[%emt 00:00:06]} 4. a4 {[%clk 01:30:27]} {[%emt 00:00:27]} b4
{[%clk 01:32:10]} {[%emt 00:00:05]} 5. Bxc4 {[%clk 01:30:37]} {[%emt 00:00:20]}
e6 {[%clk 01:32:34]} {[%emt 00:00:05]} 6. Nf3 {[%clk 01:29:58]} {[%emt
00:01:08]} Nf6 {[%clk 01:33:00]} {[%emt 00:00:05]} 7. O-O {[%clk 01:30:09]}
{[%emt 00:00:19]} Be7 {[%clk 01:33:17]} {[%emt 00:00:13]} 8. Nbd2 {[%clk
01:27:20]} {[%emt 00:03:19]} O-O {[%clk 01:33:06]} {[%emt 00:00:41]} 9. Nb3
{[%clk 01:20:25]} {[%emt 00:07:24]} a5 {[%clk 01:33:03]} {[%emt 00:00:33]} 10.
Qe2 {[%clk 01:18:49]} {[%emt 00:02:06]} Nbd7 {[%clk 01:32:20]} {[%emt
00:01:13]} 11. e4 {[%clk 01:13:08]} {[%emt 00:06:11]} Bb7 {[%clk 01:32:23]}
{[%emt 00:00:28]} 12. Bd3 {[%clk 01:12:58]} {[%emt 00:00:39]} h6 {[%clk
01:26:05]} {[%emt 00:06:48]} 13. e5 {[%clk 01:10:20]} {[%emt 00:03:07]} Nh7
{[%clk 01:24:33]} {[%emt 00:02:03]} 14. Be3 {[%clk 01:03:00]} {[%emt 00:07:50]}
Qb8 {[%clk 01:17:52]} {[%emt 00:07:11]} 15. Rac1 {[%clk 00:56:17]} {[%emt
00:07:13]} Rc8 {[%clk 01:15:30]} {[%emt 00:02:53]} 16. Nfd2 {[%clk 00:50:22]}
{[%emt 00:06:23]} c5 {[%clk 01:13:04]} {[%emt 00:02:57]} 17. Nc4 {[%clk
00:42:29]} {[%emt 00:08:23]} Qc7 {[%clk 01:08:27]} {[%emt 00:05:07]} 18. Qg4
{[%clk 00:39:41]} {[%emt 00:03:13]} Kh8 {[%clk 01:03:12]} {[%emt 00:05:49]} 19.
Qg3 {[%clk 00:38:20]} {[%emt 00:01:50]} Bc6 {[%clk 00:59:53]} {[%emt 00:03:51]}
20. Nd6 {[%clk 00:35:50]} {[%emt 00:02:58]} Rf8 {[%clk 00:56:40]} {[%emt
00:03:44]} 21. Nxc5 {[%clk 00:35:21]} {[%emt 00:00:59]} Nxc5 {[%clk 00:53:06]}
{[%emt 00:04:04]} 22. Rxc5 {[%clk 00:35:26]} {[%emt 00:00:25]} Bxd6 {[%clk
00:51:55]} {[%emt 00:01:41]} 23. exd6 {[%clk 00:35:30]} {[%emt 00:00:25]} Qd7
{[%clk 00:52:19]} {[%emt 00:00:08]} 24. b3 {[%clk 00:28:27]} {[%emt 00:07:33]}
Bd5 {[%clk 00:52:19]} {[%emt 00:00:29]} 25. Rc7 {[%clk 00:26:57]} {[%emt
00:01:59]} Qd8 {[%clk 00:52:14]} {[%emt 00:00:36]} 26. Bb5 {[%clk 00:23:40]}
{[%emt 00:03:46]} Nf6 {[%clk 00:49:33]} {[%emt 00:03:12]} 27. Bf4 {[%clk
00:19:05]} {[%emt 00:05:04]} Nh5 {[%clk 00:48:12]} {[%emt 00:01:51]} 28. Qe3
{[%clk 00:19:10]} {[%emt 00:00:24]} Nxf4 {[%clk 00:47:43]} {[%emt 00:01:00]} 29.
Qxf4 {[%clk 00:19:34]} {[%emt 00:00:06]} Bxb3 {[%clk 00:48:01]} {[%emt
00:00:13]} 30. d7 {[%clk 00:15:47]} {[%emt 00:04:17]} Bd5 {[%clk 00:34:29]}
{[%emt 00:14:02]} 31. Rfc1 {[%clk 00:15:37]} {[%emt 00:00:40]} b3 {[%clk
00:29:00]} {[%emt 00:05:59]} 32. Rc8 {[%clk 00:11:49]} {[%emt 00:04:18]} b2
{[%clk 00:15:31]} {[%emt 00:14:00]} 33. Rxd8 {[%clk 00:12:04]} {[%emt
00:00:15]} bxc1=Q+ {[%clk 00:15:52]} {[%emt 00:00:09]} 34. Qxc1 {[%clk
00:12:25]} {[%emt 00:00:08]} Rfxd8 {[%clk 00:16:15]} {[%emt 00:00:07]} 35. Qc7
{[%clk 00:12:35]} {[%emt 00:00:19]} Kg8 {[%clk 00:15:22]} {[%emt 00:01:24]} 36.
Ba6 {[%clk 00:11:30]} {[%emt 00:01:34]} Kf8 {[%clk 00:14:28]} {[%emt 00:01:25]}
37. Bc8 {[%clk 00:10:42]} {[%emt 00:01:18]} Ke7 {[%clk 00:14:04]} {[%emt
00:00:54]} 38. f4 {[%clk 00:10:19]} {[%emt 00:00:52]} f5 {[%clk 00:11:27]}
{[%emt 00:03:07]} 39. Kf2 {[%clk 00:10:29]} {[%emt 00:00:19]} g6 {[%clk
00:10:18]} {[%emt 00:01:40]} 40. h3 {[%clk 00:10:35]} {[%emt 00:00:24]} h5
{[%clk 00:10:13]} {[%emt 00:00:35]} 41. Kg3 {[%clk 00:09:05]} {[%emt 00:01:56]}
Bb3 {[%clk 00:05:49]} {[%emt 00:04:57]} 42. Qc6 {[%clk 00:06:45]} {[%emt
00:02:48]} Bd5 {[%clk 00:05:59]} {[%emt 00:00:22]} 43. Qc5+ {[%clk 00:06:55]}
{[%emt 00:00:20]} Kf7 {[%clk 00:05:50]} {[%emt 00:00:40]} 44. Kh4 {[%clk
00:07:09]} {[%emt 00:00:15]} Bxg2 {[%clk 00:03:55]} {[%emt 00:02:26]} 45. Qc7
{[%clk 00:06:50]} {[%emt 00:00:48]} Ke7 {[%clk 00:04:18]} {[%emt 00:00:07]} 46.
Kg5 {[%clk 00:07:14]} {[%emt 00:00:06]} Bxh3 {[%clk 00:03:41]} {[%emt
00:01:08]} 47. Kh6 {[%clk 00:07:27]} {[%emt 00:00:15]} Ra7 {[%clk 00:01:44]}
{[%emt 00:02:29]} 48. Qxa7 {[%clk 00:04:51]} {[%emt 00:03:06]} Kf6 {[%clk
00:02:09]} {[%emt 00:00:06]} 49. Kh7 {[%clk 00:05:12]} {[%emt 00:00:08]} Rf8
{[%clk 00:02:24]} {[%emt 00:00:15]} 50. Qc7 {[%clk 00:04:14]} {[%emt 00:01:28]}
Rf7 {[%clk 00:02:40]} {[%emt 00:00:14]} 51. Kg8 {[%clk 00:04:31]} {[%emt
00:00:11]} Rg7+ {[%clk 00:03:03]} {[%emt 00:00:09]} 52. Kh8 {[%clk 00:04:51]}
{[%emt 00:00:09]} Re7 {[%clk 00:02:57]} {[%emt 00:00:37]} 53. Qe5+ {[%clk
00:04:35]} {[%emt 00:00:46]} Kf7 {[%clk 00:03:22]} {[%emt 00:00:05]} 54. Qg7#
{[%emt 00:00:06]} 1-0

[Event "Kvibergspelen 2018"]
[Site "Prioritet Serneke Arena, Krutvagen 2, Gothenburg, Sweden"]
[Date "2018.04.22"]
[Round "8.10"]
[White "Kardell, Mathias"]
[Black "Bjorklund, Thomas"]
[Result "0-1"]
[TimeControl "15 minutes + 5 seconds per move from move one (Round 1 - 4) / 90 minutes + 30 seconds per move from move one (Round 5 - 8)"]
[WhiteFideId "1710109"]
[BlackFideId "1724576"]
[WhiteElo "2057"]
[BlackElo "2156"]

1. e4 {[%clk 01:30:57]} {[%emt 00:00:02]} e5 {[%clk 01:21:50]} {[%emt
00:09:10]} 2. Nf3 {[%clk 01:31:16]} {[%emt 00:00:11]} Nc6 {[%clk 01:22:08]}
{[%emt 00:00:12]} 3. Bc4 {[%clk 01:31:25]} {[%emt 00:00:21]} Bc5 {[%clk
01:22:22]} {[%emt 00:00:16]} 4. d3 {[%clk 01:31:19]} {[%emt 00:00:36]} Nf6
{[%clk 01:21:31]} {[%emt 00:01:21]} 5. Bg5 {[%clk 01:31:18]} {[%emt 00:00:31]}
d6 {[%clk 01:21:50]} {[%emt 00:00:11]} 6. c3 {[%clk 01:30:18]} {[%emt
00:01:31]} a6 {[%clk 01:21:33]} {[%emt 00:00:47]} 7. O-O {[%clk 01:29:56]}
{[%emt 00:00:52]} Bg4 {[%clk 01:16:58]} {[%emt 00:05:06]} 8. Nbd2 {[%clk
01:29:30]} {[%emt 00:00:55]} O-O {[%clk 01:13:35]} {[%emt 00:03:53]} 9. b4
{[%clk 01:29:10]} {[%emt 00:00:50]} Ba7 {[%clk 01:13:40]} {[%emt 00:00:26]} 10.
a4 {[%clk 01:27:16]} {[%emt 00:02:24]} Nb8 {[%clk 01:10:45]} {[%emt 00:03:25]}
11. Qc2 {[%clk 01:11:00]} {[%emt 00:16:46]} Nbd7 {[%clk 01:06:54]} {[%emt
00:04:20]} 12. Qa2 {[%clk 01:03:47]} {[%emt 00:07:43]} c6 {[%clk 01:05:11]}
{[%emt 00:02:12]} 13. Rfe1 {[%clk 00:58:40]} {[%emt 00:05:37]} Qe8 {[%clk
00:58:16]} {[%emt 00:07:26]} 14. Qb2 {[%clk 00:39:14]} {[%emt 00:19:55]} Qc8
{[%clk 00:53:50]} {[%emt 00:04:55]} 15. h3 {[%clk 00:34:50]} {[%emt 00:04:54]}
Bh5 {[%clk 00:52:02]} {[%emt 00:02:18]} 16. Nh4 {[%clk 00:32:41]} {[%emt
00:02:39]} Bg6 {[%clk 00:48:47]} {[%emt 00:03:45]} 17. Ndf3 {[%clk 00:29:40]}
{[%emt 00:03:31]} d5 {[%clk 00:48:09]} {[%emt 00:01:09]} 18. Nxg6 {[%clk
00:29:41]} {[%emt 00:00:29]} hxg6 {[%clk 00:48:32]} {[%emt 00:00:08]} 19. exd5
{[%clk 00:28:44]} {[%emt 00:01:27]} cxd5 {[%clk 00:48:45]} {[%emt 00:00:17]} 20.
Ba2 {[%clk 00:28:20]} {[%emt 00:00:53]} e4 {[%clk 00:49:02]} {[%emt 00:00:12]}
21. Bxf6 {[%clk 00:23:54]} {[%emt 00:04:57]} Nxf6 {[%clk 00:47:58]} {[%emt
00:01:35]} 22. Ne5 {[%clk 00:23:03]} {[%emt 00:01:20]} exd3 {[%clk 00:41:28]}
{[%emt 00:07:01]} 23. Nxd3 {[%clk 00:22:05]} {[%emt 00:01:28]} Qf5 {[%clk
00:41:10]} {[%emt 00:00:47]} 24. Rad1 {[%clk 00:18:09]} {[%emt 00:04:27]} Rac8
{[%clk 00:36:51]} {[%emt 00:04:49]} 25. Re5 {[%clk 00:15:36]} {[%emt 00:03:02]}
Qd7 {[%clk 00:36:25]} {[%emt 00:00:56]} 26. Rde1 {[%clk 00:11:04]} {[%emt
00:05:02]} Qxa4 {[%clk 00:33:44]} {[%emt 00:03:11]} 27. Bxd5 {[%clk 00:10:59]}
{[%emt 00:00:36]} Nxd5 {[%clk 00:33:53]} {[%emt 00:00:20]} 28. Rxd5 {[%clk
00:11:22]} {[%emt 00:00:07]} Qc6 {[%clk 00:34:13]} {[%emt 00:00:10]} 29. Rde5
{[%clk 00:06:20]} {[%emt 00:05:32]} Qxc3 {[%clk 00:34:03]} {[%emt 00:00:41]} 30.
Qe2 {[%clk 00:05:01]} {[%emt 00:01:49]} Rcd8 {[%clk 00:33:55]} {[%emt
00:00:38]} 31. Nc5 {[%clk 00:02:25]} {[%emt 00:03:06]} Qxb4 {[%clk 00:33:27]}
{[%emt 00:00:59]} 32. Ne4 {[%clk 00:01:30]} {[%emt 00:01:24]} Bd4 {[%clk
00:32:26]} {[%emt 00:01:31]} 33. Rg5 {[%clk 00:01:30]} {[%emt 00:00:30]} Rfe8
{[%clk 00:32:12]} {[%emt 00:00:45]} 34. Rf1 {[%clk 00:01:26]} {[%emt 00:00:33]}
Rxe4 {[%clk 00:31:47]} {[%emt 00:00:54]} 0-1

[Event "Kvibergspelen 2018"]
[Site "Prioritet Serneke Arena, Krutvagen 2, Gothenburg, Sweden"]
[Date "2018.04.22"]
[Round "8.11"]
[White "Hillarp Persson, Tiger"]
[Black "Larsson, Patrik"]
[Result "1-0"]
[TimeControl "15 minutes + 5 seconds per move from move one (Round 1 - 4) / 90 minutes + 30 seconds per move from move one (Round 5 - 8)"]
[WhiteTitle "GM"]
[WhiteFideId "1700812"]
[BlackFideId "1713744"]
[WhiteElo "2540"]
[BlackElo "2006"]

1. c4 {[%clk 01:26:43]} {[%emt 00:04:15]} g6 {[%clk 01:30:55]} {[%emt
00:00:06]} 2. Nc3 {[%clk 01:26:47]} {[%emt 00:00:26]} Bg7 {[%clk 01:31:18]}
{[%emt 00:00:06]} 3. d4 {[%clk 01:27:13]} {[%emt 00:00:04]} d6 {[%clk
01:31:37]} {[%emt 00:00:12]} 4. Nf3 {[%clk 01:27:27]} {[%emt 00:00:16]} Nf6
{[%clk 01:30:14]} {[%emt 00:01:52]} 5. Bg5 {[%clk 01:27:49]} {[%emt 00:00:08]}
h6 {[%clk 01:29:42]} {[%emt 00:01:03]} 6. Bh4 {[%clk 01:28:12]} {[%emt
00:00:07]} O-O {[%clk 01:28:29]} {[%emt 00:01:42]} 7. e3 {[%clk 01:28:35]}
{[%emt 00:00:07]} c6 {[%clk 01:26:23]} {[%emt 00:02:36]} 8. Be2 {[%clk
01:26:20]} {[%emt 00:02:45]} a6 {[%clk 01:25:48]} {[%emt 00:01:05]} 9. O-O
{[%clk 01:26:37]} {[%emt 00:00:12]} b5 {[%clk 01:25:51]} {[%emt 00:00:28]} 10.
a3 {[%clk 01:26:55]} {[%emt 00:00:12]} Bb7 {[%clk 01:21:23]} {[%emt 00:04:58]}
11. Rc1 {[%clk 01:15:59]} {[%emt 00:11:25]} Nbd7 {[%clk 01:15:40]} {[%emt
00:06:13]} 12. b4 {[%clk 01:14:58]} {[%emt 00:01:31]} bxc4 {[%clk 01:15:09]}
{[%emt 00:01:02]} 13. Bxc4 {[%clk 01:15:21]} {[%emt 00:00:07]} Nb6 {[%clk
01:06:56]} {[%emt 00:08:42]} 14. Be2 {[%clk 01:11:48]} {[%emt 00:04:03]} Nbd5
{[%clk 00:59:42]} {[%emt 00:07:45]} 15. Qb3 {[%clk 01:09:03]} {[%emt 00:03:15]}
Nxc3 {[%clk 00:58:10]} {[%emt 00:02:02]} 16. Rxc3 {[%clk 01:09:22]} {[%emt
00:00:11]} Qb6 {[%clk 00:49:24]} {[%emt 00:09:17]} 17. Nd2 {[%clk 01:07:49]}
{[%emt 00:02:02]} d5 {[%clk 00:25:12]} {[%emt 00:24:43]} 18. Rc5 {[%clk
01:04:20]} {[%emt 00:03:59]} Rae8 {[%clk 00:21:49]} {[%emt 00:03:52]} 19. Bxf6
{[%clk 00:57:26]} {[%emt 00:07:25]} exf6 {[%clk 00:20:19]} {[%emt 00:02:00]} 20.
Qc2 {[%clk 00:57:27]} {[%emt 00:00:27]} f5 {[%clk 00:20:36]} {[%emt 00:00:14]}
21. Nb3 {[%clk 00:57:49]} {[%emt 00:00:09]} Re6 {[%clk 00:17:44]} {[%emt
00:03:21]} 22. g3 {[%clk 00:54:28]} {[%emt 00:03:52]} Rfe8 {[%clk 00:17:41]}
{[%emt 00:00:32]} 23. Rc1 {[%clk 00:53:57]} {[%emt 00:01:01]} f4 {[%clk
00:14:08]} {[%emt 00:04:04]} 24. gxf4 {[%clk 00:54:20]} {[%emt 00:00:07]} g5
{[%clk 00:13:36]} {[%emt 00:01:02]} 25. f5 {[%clk 00:52:41]} {[%emt 00:02:08]}
Re4 {[%clk 00:13:58]} {[%emt 00:00:07]} 26. Rxc6 {[%clk 00:53:03]} {[%emt
00:00:10]} Bxc6 {[%clk 00:14:09]} {[%emt 00:00:19]} 27. Qxc6 {[%clk 00:53:27]}
{[%emt 00:00:06]} Qd8 {[%clk 00:13:49]} {[%emt 00:00:49]} 28. Bf3 {[%clk
00:52:47]} {[%emt 00:01:11]} Rh4 {[%clk 00:10:49]} {[%emt 00:03:30]} 29. Bxd5
{[%clk 00:52:10]} {[%emt 00:01:08]} 1-0